fUSD/lending_fUSD_20250223
["ID","MTS","AMOUNT","RATE_DAILY","PERIOD"]
[354228454,1740353479133,-4880.47,0.00016849,2]
[354228455,1740353479142,-500.0,0.00016849,2]
[354228456,1740353479152,-988.44,0.00016849,2]
[354228457,1740353479161,-3416.71,0.00016849,2]
[354228458,1740353479171,-1033.08,0.00016849,2]
[354228459,1740353479180,-711.6,0.00016849,2]
[354228460,1740353479189,-3794.22,0.00016849,2]
[354228461,1740353479199,-687.99,0.00016849,2]
[354228462,1740353479209,-2183.59,0.00016849,2]
[354228463,1740353479219,-500.0,0.00016849,2]
[354228464,1740353479228,-666.84,0.00016849,2]
[354228465,1740353479785,-500.0,0.00016849,2]
[354228466,1740353479813,-1360.01,0.00016849,2]
[354228467,1740353479831,-2691.73,0.00016849,2]
[354228468,1740353479850,-2250.19,0.00016849,2]
[354228469,1740353479860,-1516.02,0.00016849,2]
[354228470,1740353479870,-500.0,0.00016849,2]
[354228471,1740353479879,-4047.89,0.00016849,2]
[354228472,1740353479889,-741.57,0.00016849,2]
[354228473,1740353479899,-3043.56,0.00016849,2]
[354228474,1740353479909,-962.95,0.00016849,2]
[354228475,1740353479918,-500.0,0.00016849,2]
[354228476,1740353479928,-3262.59,0.00016849,2]
[354228477,1740353479937,-3135.8,0.00016849,2]
[354228478,1740353479947,-1117.59,0.00016849,2]
[354228479,1740353479958,-11350.88,0.00016849,2]
[354228480,1740353479970,-2070.05,0.00016849,2]
[354228481,1740353479980,-684.7,0.00016849,2]
[354228482,1740353479992,-500.0,0.00016849,2]
[354228483,1740353480002,-2288.44,0.00016849,2]
[354228484,1740353480012,-1698.24,0.00016849,2]
[354228485,1740353480023,-2235.47,0.00016849,2]
[354228486,1740353480032,-688.3,0.00016849,2]
[354228487,1740353480042,-619.5,0.00016849,2]
[354228488,1740353480056,-500.0,0.00016849,2]
[354228489,1740353480066,-854.83,0.00016849,2]
[354228490,1740353480076,-2374.82,0.00016849,2]
[354228491,1740353480085,-1443.32,0.00016849,2]
[354228492,1740353480094,-3635.87,0.00016849,2]
[354228493,1740353480103,-2655.28,0.00016849,2]
[354228494,1740353480112,-2119.63,0.00016849,2]
[354228495,1740353480122,-3247.38,0.00016849,2]
[354228496,1740353480131,-590.04,0.00016849,2]
[354228497,1740353480140,-1084.51,0.00016849,2]
[354228498,1740353480150,-3009.5,0.00016849,2]
[354228499,1740353480162,-151.0,0.00016849,2]
[354228500,1740353480171,-1193.14,0.00016849,2]
[354228501,1740353480181,-2121.71,0.00016849,2]
[354228502,1740353480190,-9038.34,0.00016849,2]
[354228503,1740353480200,-649.86,0.00016849,2]
[354228504,1740353480209,-500.0,0.00016849,2]
[354228505,1740353480219,-500.0,0.00016849,2]
[354228506,1740353480229,-4001.14,0.00016849,2]
[354228507,1740353480238,-2348.73,0.00016849,2]
[354228508,1740353480249,-1481.92,0.00016849,2]
[354228509,1740353480258,-2467.86,0.00016849,2]
[354228510,1740353480267,-1690.11,0.00016849,2]
[354228511,1740353480277,-2824.09,0.00016849,2]
[354228512,1740353480286,-641.2,0.00016849,2]
[354228513,1740353480296,-1352.7,0.00016849,2]
[354228514,1740353480309,-5740.59,0.00016849,2]
[354228515,1740353480318,-500.0,0.00016849,2]
[354228516,1740353480327,-500.0,0.00016849,2]
[354228517,1740353480336,-3769.92,0.00016849,2]
[354228518,1740353480346,-2651.04,0.00016849,2]
[354228519,1740353480356,-2054.97,0.00016849,2]
[354228520,1740353480365,-500.0,0.00016849,2]
[354228521,1740353480374,-2474.68,0.00016849,2]
[354228522,1740353480383,-1902.86,0.00016849,2]
[354228523,1740353480393,-500.0,0.00016849,2]
[354228524,1740353480402,-1861.3,0.00016849,2]
[354228525,1740353480411,-765.49,0.00016849,2]
[354228526,1740353480421,-2451.09,0.00016849,2]
[354228527,1740353480430,-500.0,0.00016849,2]
[354228528,1740353480438,-1148.74,0.00016849,2]
[354228529,1740353480447,-2947.25,0.00016849,2]
[354228530,1740353480456,-921.14,0.00016849,2]
[354228531,1740353480466,-2393.08,0.00016849,2]
[354228532,1740353480475,-3399.41,0.00016849,2]
[354228533,1740353480484,-1427.95,0.00016849,2]
[354228534,1740353480493,-2168.65,0.00016849,2]
[354228535,1740353480503,-3075.28,0.00016849,2]
[354228536,1740353480512,-2865.2,0.00016849,2]
[354228537,1740353480521,-738.31,0.00016849,2]
[354228538,1740353480530,-1270.01,0.00016849,2]
[354228539,1740353480540,-559.85,0.00016849,2]
[354228540,1740353480550,-500.0,0.00016849,2]
[354228541,1740353480560,-500.0,0.00016849,2]
[354228542,1740353480569,-4248.12,0.00016849,2]
[354228543,1740353480579,-889.27,0.00016849,2]
[354228544,1740353480588,-2925.06,0.00016849,2]
[354228545,1740353480598,-810.72,0.00016849,2]
[354228546,1740353480607,-2205.82,0.00016849,2]
[354228547,1740353480617,-2039.78,0.00016849,2]
[354228548,1740353480627,-978.16,0.00016849,2]
[354228549,1740353480636,-276.55861,0.00016849,2]
[354228550,1740353480645,-500.0,0.00016849,2]
[354228551,1740353480655,-1056.99,0.00016849,2]
[354228552,1740353480664,-961.55,0.00016849,2]
[354228553,1740353480674,-500.0,0.00016849,2]
[354228554,1740353480683,-1065.57,0.00016849,2]
[354228555,1740353480692,-500.0,0.00016849,2]
[354228556,1740353480702,-3889.56,0.00016849,2]
[354228557,1740353480711,-1286.75,0.00016849,2]
[354228558,1740353480720,-1867.88,0.00016849,2]
[354228559,1740353480730,-500.0,0.00016849,2]
[354228560,1740353480740,-500.0,0.00016849,2]
[354228561,1740353480750,-500.0,0.00016849,2]
[354228562,1740353480759,-500.0,0.00016849,2]
[354228563,1740353480769,-4249.4,0.00016849,2]
[354228564,1740353480778,-2861.57,0.00016849,2]
[354228565,1740353480787,-1253.92,0.00016849,2]
[354228566,1740353480796,-500.0,0.00016849,2]
[354228567,1740353480808,-514.67,0.00016849,2]
[354228568,1740353480818,-1535.67,0.00016849,2]
[354228569,1740353480827,-500.0,0.00016849,2]
[354228570,1740353480836,-500.0,0.00016849,2]
[354228571,1740353480845,-500.0,0.00016849,2]
[354228572,1740353480854,-527.21,0.00016849,2]
[354228573,1740353480864,-1547.08,0.00016849,2]
[354228574,1740353480874,-500.0,0.00016849,2]
[354228575,1740353480883,-1280.01,0.00016849,2]
[354228576,1740353480893,-1789.28,0.00016849,2]
[354228577,1740353480902,-500.0,0.00016849,2]
[354228578,1740353480911,-2104.09,0.00016849,2]
[354228579,1740353480921,-500.0,0.00016849,2]
[354228580,1740353480930,-3204.29,0.00016849,2]
[354228581,1740353480940,-700.04,0.00016849,2]
[354228582,1740353480949,-500.0,0.00016849,2]
[354228583,1740353480959,-811.44,0.00016849,2]
[354228584,1740353480968,-3741.91,0.00016849,2]
[354228585,1740353480978,-500.0,0.00016849,2]
[354228586,1740353480989,-849.84,0.00016849,2]
[354228587,1740353480999,-6894.13,0.00016849,2]
[354228588,1740353481008,-1185.61,0.00016849,2]
[354228589,1740353481018,-2904.93,0.00016849,2]
[354228590,1740353481027,-623.3,0.00016849,2]
[354228591,1740353481036,-510.39,0.00016849,2]
[354228592,1740353481046,-529.64733968,0.00016849,2]
[354228593,1740353481057,-500.0,0.00016849,2]
[354228594,1740353481067,-2119.38,0.00016849,2]
[354228595,1740353481076,-641.15,0.00016849,2]
[354228596,1740353481087,-2112.78,0.00016849,2]
[354228597,1740353481097,-1083.69,0.00016849,2]
[354228598,1740353481106,-1421.77,0.00016849,2]
[354228599,1740353481117,-500.0,0.00016849,2]
[354228600,1740353481127,-500.0,0.00016849,2]
[354228601,1740353481136,-2508.93,0.00016849,2]
[354228602,1740353481146,-1065.63,0.00016849,2]
[354228603,1740353481155,-500.0,0.00016849,2]
[354228604,1740353481164,-1081.06,0.00016849,2]
[354228605,1740353481175,-157.06711686,0.00016849,2]
[354228606,1740353481184,-150.0,0.00016862,2]
[354228607,1740353481195,-150.0,0.00016865,2]
[354228608,1740353481205,-2566.7074404,0.00016873,2]
[354228609,1740353481214,-160.17133937,0.00016877,2]
[354228610,1740353481224,-240.25700906,0.00016877,2]
[354228611,1740353481233,-150.0,0.00016893,2]
[354228612,1740353481242,-668.13,0.00016903,2]
[354228613,1740353481252,-888.1666545,0.00016914,2]
[354228614,1740353481261,-500.0,0.0001693,2]
[354228615,1740353481271,-500.0,0.0001693,2]
[354228616,1740353481280,-156.050572,0.00016931,2]
[354228617,1740353481289,-822.09,0.00016931,2]
[354228618,1740353481299,-500.0,0.00016931,2]
[354228619,1740353481308,-500.0,0.00016931,2]
[354228620,1740353481318,-500.0,0.00016931,2]
[354228621,1740353481327,-740.11,0.00016931,2]
[354228622,1740353481336,-950.11,0.00016931,2]
[354228623,1740353481345,-500.0,0.00016931,2]
[354228624,1740353481355,-500.0,0.00016931,2]
[354228625,1740353481364,-500.0,0.00016931,2]
[354228626,1740353481374,-755.07,0.00016931,2]
[354228627,1740353481383,-500.0,0.00016931,2]
[354228628,1740353481392,-500.0,0.00016931,2]
[354228629,1740353481401,-500.0,0.00016931,2]
[354228630,1740353481410,-500.0,0.00016931,2]
[354228631,1740353481420,-500.0,0.00016931,2]
[354228632,1740353481429,-500.0,0.00016931,2]
[354228633,1740353481439,-500.0,0.00016931,2]
[354228634,1740353481448,-944.75,0.00016931,2]
[354228635,1740353481458,-500.0,0.00016931,2]
[354228636,1740353481467,-500.0,0.00016931,2]
[354228637,1740353481476,-500.0,0.00016931,2]
[354228638,1740353481486,-500.0,0.00016931,2]
[354228639,1740353481495,-500.0,0.00016931,2]
[354228640,1740353481505,-500.0,0.00016931,2]
[354228641,1740353481514,-500.0,0.00016931,2]
[354228642,1740353481524,-626.53,0.00016931,2]
[354228643,1740353481533,-684.82,0.00016931,2]
[354228644,1740353481542,-500.0,0.00016931,2]
[354228645,1740353481551,-500.0,0.00016931,2]
[354228646,1740353481561,-500.0,0.00016931,2]
[354228647,1740353481570,-500.0,0.00016931,2]
[354228648,1740353481579,-500.0,0.00016931,2]
[354228649,1740353481588,-817.57,0.00016931,2]
[354228650,1740353481598,-500.0,0.00016931,2]
[354228651,1740353481607,-585.52,0.00016931,2]
[354228652,1740353481616,-511.2,0.00016931,2]
[354228653,1740353481626,-806.31,0.00016931,2]
[354228654,1740353481635,-500.0,0.00016931,2]
[354228655,1740353481644,-500.0,0.00016931,2]
[354228656,1740353481653,-554.64,0.00016931,2]
[354228657,1740353481663,-500.0,0.00016931,2]
[354228658,1740353481672,-500.0,0.00016931,2]
[354228659,1740353481681,-640.95,0.00016931,2]
[354228660,1740353481690,-500.0,0.00016931,2]
[354228661,1740353481700,-730.72,0.00016931,2]
[354228662,1740353481709,-500.0,0.00016931,2]
[354228663,1740353481719,-500.0,0.00016931,2]
[354228664,1740353481728,-500.0,0.00016931,2]
[354228665,1740353481737,-500.0,0.00016931,2]
[354228666,1740353481747,-516.69,0.00016931,2]
[354228667,1740353481757,-500.0,0.00016931,2]
[354228668,1740353481768,-500.0,0.00016931,2]
[354228669,1740353481777,-500.0,0.00016931,2]
[354228670,1740353481786,-500.0,0.00016931,2]
[354228671,1740353481795,-500.0,0.00016931,2]
[354228672,1740353481806,-500.0,0.00016931,2]
[354228673,1740353481815,-500.0,0.00016931,2]
[354228674,1740353481825,-500.0,0.00016931,2]
[354228675,1740353481835,-500.0,0.00016931,2]
[354228676,1740353481844,-500.0,0.00016931,2]
[354228677,1740353481853,-520.84,0.00016931,2]
[354228678,1740353481862,-500.0,0.00016931,2]
[354228679,1740353481871,-350.26377138,0.00016931,2]
[354228680,1740353481880,-500.0,0.00016931,2]
[354228681,1740353481889,-500.0,0.00016931,2]
[354228682,1740353481899,-500.0,0.00016931,2]
[354228683,1740353481909,-500.0,0.00016931,2]
[354228684,1740353481920,-552.39,0.00016931,2]
[354228685,1740353481929,-500.0,0.00016931,2]
[354228686,1740353481939,-500.0,0.00016931,2]
[354228687,1740353481948,-528.39,0.00016931,2]
[354228688,1740353481958,-860.18,0.00016931,2]
[354228689,1740353481967,-500.0,0.00016931,2]
[354228690,1740353481977,-373.60338583,0.00016931,2]
[354228691,1740353481990,-500.0,0.00016931,2]
[354228692,1740353481999,-764.47,0.00016931,2]
[354228693,1740353482008,-500.0,0.00016931,2]
[354228694,1740353482017,-500.0,0.00016931,2]
[354228695,1740353482027,-1111.83,0.00016931,2]
[354228696,1740353482037,-500.0,0.00016931,2]
[354228697,1740353482046,-500.0,0.00016931,2]
[354228698,1740353482056,-500.0,0.00016931,2]
[354228699,1740353482066,-500.0,0.00016931,2]
[354228700,1740353482078,-653.59,0.00016931,2]
[354228701,1740353482087,-500.0,0.00016931,2]
[354228702,1740353482097,-1545.06,0.00016931,2]
[354228703,1740353482106,-500.0,0.00016931,2]
[354228704,1740353482117,-500.0,0.00016931,2]
[354228705,1740353482126,-1353.57,0.00016931,2]
[354228706,1740353482135,-500.0,0.00016931,2]
[354228707,1740353482144,-523.27,0.00016931,2]
[354228708,1740353482153,-500.0,0.00016931,2]
[354228709,1740353482163,-500.0,0.00016931,2]
[354228710,1740353482172,-1352.93,0.00016931,2]
[354228711,1740353482181,-1011.08,0.00016931,2]
[354228712,1740353482190,-1000.26,0.00016931,2]
[354228713,1740353482200,-1500.09,0.00016931,2]
[354228714,1740353482209,-708.96,0.00016931,2]
[354228715,1740353482218,-500.0,0.00016931,2]
[354228716,1740353482228,-575.78,0.00016931,2]
[354228717,1740353482237,-1015.35,0.00016931,2]
[354228718,1740353482246,-991.38,0.00016931,2]
[354228719,1740353482255,-1549.18,0.00016931,2]
[354228720,1740353482264,-529.22,0.00016931,2]
[354228721,1740353482274,-829.1,0.00016931,2]
[354228722,1740353482284,-500.0,0.00016931,2]
[354228723,1740353482294,-859.55,0.00016931,2]
[354228724,1740353482303,-1497.27,0.00016931,2]
[354228725,1740353482312,-500.0,0.00016931,2]
[354228726,1740353482321,-500.0,0.00016931,2]
[354228727,1740353482331,-500.0,0.00016931,2]
[354228728,1740353482340,-500.0,0.00016931,2]
[354228729,1740353482350,-1436.02,0.00016931,2]
[354228730,1740353482359,-721.44,0.00016931,2]
[354228731,1740353482539,-769.04,0.00016931,2]
[354228732,1740353482549,-151.0,0.00016931,2]
[354228733,1740353482560,-500.0,0.00016931,2]
[354228734,1740353482570,-841.61,0.00016931,2]
[354228735,1740353482579,-151.0,0.00016931,2]
[354228736,1740353482589,-1264.07,0.00016931,2]
[354228737,1740353482599,-1067.3,0.00016931,2]
[354228738,1740353482609,-599.2,0.00016931,2]
[354228739,1740353482618,-500.0,0.00016931,2]
[354228740,1740353482627,-800.15,0.00016931,2]
[354228741,1740353482637,-1000.0,0.00016931,2]
[354228742,1740353482646,-793.84,0.00016931,2]
[354228743,1740353482656,-500.0,0.00016931,2]
[354228744,1740353482665,-500.0,0.00016931,2]
[354228745,1740353482674,-500.0,0.00016931,2]
[354228746,1740353482684,-554.26,0.00016931,2]
[354228747,1740353482693,-878.11,0.00016931,2]
[354228748,1740353482702,-1660.82,0.00016931,2]
[354228749,1740353482711,-1323.9,0.00016931,2]
[354228750,1740353482721,-591.7,0.00016931,2]
[354228751,1740353482731,-260.94069712,0.00016931,2]
[354228752,1740353482740,-500.0,0.00016931,2]
[354228753,1740353482749,-1304.43,0.00016931,2]
[354228754,1740353482759,-655.13,0.00016931,2]
[354228755,1740353482768,-613.34,0.00016931,2]
[354228756,1740353482777,-819.66,0.00016931,2]
[354228757,1740353482786,-1327.72,0.00016931,2]
[354228758,1740353482795,-601.57,0.00016931,2]
[354228759,1740353482805,-500.0,0.00016931,2]
[354228760,1740353482815,-842.39,0.00016931,2]
[354228761,1740353482824,-500.0,0.00016931,2]
[354228762,1740353482833,-925.77,0.00016931,2]
[354228763,1740353482843,-1006.85,0.00016931,2]
[354228764,1740353482852,-1618.37,0.00016931,2]
[354228765,1740353482861,-744.24,0.00016931,2]
[354228766,1740353482871,-912.53,0.00016931,2]
[354228767,1740353482880,-946.08,0.00016931,2]
[354228768,1740353482889,-500.0,0.00016931,2]
[354228769,1740353482899,-249.017467,0.00016931,2]
[354228770,1740353482908,-1675.32,0.00016931,2]
[354228771,1740353482918,-1433.69,0.00016931,2]
[354228772,1740353482928,-700.81,0.00016931,2]
[354228773,1740353482938,-1458.26,0.00016931,2]
[354228774,1740353482947,-753.58,0.00016931,2]
[354228775,1740353482957,-707.82,0.00016931,2]
[354228776,1740353482966,-1177.05,0.00016931,2]
[354228777,1740353482976,-751.63,0.00016931,2]
[354228778,1740353482987,-347.2944,0.00016931,2]
[354228779,1740353482999,-1614.73,0.00016931,2]
[354228780,1740353483009,-500.0,0.00016931,2]
[354228781,1740353483018,-500.0,0.00016931,2]
[354228782,1740353483027,-500.0,0.00016931,2]
[354228783,1740353483037,-500.0,0.00016931,2]
[354228784,1740353483046,-647.68,0.00016931,2]
[354228785,1740353483057,-1759.43,0.00016931,2]
[354228786,1740353483067,-500.0,0.00016931,2]
[354228787,1740353483076,-500.0,0.00016931,2]
[354228788,1740353483085,-797.18,0.00016931,2]
[354228789,1740353483094,-919.37,0.00016931,2]
[354228790,1740353483103,-500.0,0.00016931,2]
[354228791,1740353483113,-841.02,0.00016931,2]
[354228792,1740353483122,-848.57,0.00016931,2]
[354228793,1740353483131,-679.91,0.00016931,2]
[354228794,1740353483141,-500.0,0.00016931,2]
[354228795,1740353483150,-685.45,0.00016931,2]
[354228796,1740353483159,-1150.94,0.00016931,2]
[354228797,1740353483168,-640.58,0.00016931,2]
[354228798,1740353483178,-533.66,0.00016931,2]
[354228799,1740353483187,-500.0,0.00016931,2]
[354228800,1740353483196,-500.0,0.00016931,2]
[354228801,1740353483206,-500.0,0.00016931,2]
[354228802,1740353483215,-933.73,0.00016931,2]
[354228803,1740353483225,-2003.28,0.00016931,2]
[354228804,1740353483234,-748.45,0.00016931,2]
[354228805,1740353483243,-500.0,0.00016931,2]
[354228806,1740353483252,-691.94,0.00016931,2]
[354228807,1740353483261,-500.0,0.00016931,2]
[354228808,1740353483270,-500.0,0.00016931,2]
[354228809,1740353483279,-727.95,0.00016931,2]
[354228810,1740353483289,-500.0,0.00016931,2]
[354228811,1740353483299,-699.11,0.00016931,2]
[354228812,1740353483309,-1172.31,0.00016931,2]
[354228813,1740353483319,-544.31,0.00016931,2]
[354228814,1740353483329,-749.39,0.00016931,2]
[354228815,1740353483338,-541.75,0.00016931,2]
[354228816,1740353483348,-794.72,0.00016931,2]
[354228817,1740353483358,-500.0,0.00016931,2]
[354228818,1740353483367,-1092.04,0.00016931,2]
[354228819,1740353483377,-1523.18,0.00016931,2]
[354228820,1740353483386,-500.0,0.00016931,2]
[354228821,1740353483395,-1814.48,0.00016931,2]
[354228822,1740353483404,-768.27,0.00016931,2]
[354228823,1740353483415,-945.62,0.00016931,2]
[354228824,1740353483424,-909.87,0.00016931,2]
[354228825,1740353483433,-756.42,0.00016931,2]
[354228826,1740353483443,-500.0,0.00016931,2]
[354228827,1740353483452,-940.07,0.00016931,2]
[354228828,1740353483462,-1635.88,0.00016931,2]
[354228829,1740353483471,-500.0,0.00016931,2]
[354228830,1740353483481,-1091.74,0.00016931,2]
[354228831,1740353483491,-500.0,0.00016931,2]
[354228832,1740353483501,-500.0,0.00016931,2]
[354228833,1740353483511,-500.0,0.00016931,2]
[354228834,1740353483520,-1556.84,0.00016931,2]
[354228835,1740353483530,-500.0,0.00016931,2]
[354228836,1740353483539,-500.0,0.00016931,2]
[354228837,1740353483549,-500.0,0.00016931,2]
[354228838,1740353483559,-1812.38,0.00016931,2]
[354228839,1740353483568,-672.23,0.00016931,2]
[354228840,1740353483578,-500.0,0.00016931,2]
[354228841,1740353483588,-500.0,0.00016931,2]
[354228842,1740353483597,-761.96,0.00016931,2]
[354228843,1740353483607,-1030.55,0.00016931,2]
[354228844,1740353483616,-500.0,0.00016931,2]
[354228845,1740353483626,-500.0,0.00016931,2]
[354228846,1740353483636,-1056.73,0.00016931,2]
[354228847,1740353483645,-500.0,0.00016931,2]
[354228848,1740353483655,-500.0,0.00016931,2]
[354228849,1740353483664,-1094.0,0.00016931,2]
[354228850,1740353483674,-500.0,0.00016931,2]
[354228851,1740353483684,-500.0,0.00016931,2]
[354228852,1740353483694,-702.59,0.00016931,2]
[354228853,1740353483704,-566.73,0.00016931,2]
[354228854,1740353483714,-1810.65,0.00016931,2]
[354228855,1740353483724,-1780.58,0.00016931,2]
[354228856,1740353483734,-2145.28,0.00016931,2]
[354228857,1740353483744,-500.0,0.00016931,2]
[354228858,1740353483753,-500.0,0.00016931,2]
[354228859,1740353483763,-500.0,0.00016931,2]
[354228860,1740353483773,-365.193291,0.00016931,2]
[354228861,1740353483783,-500.0,0.00016931,2]
[354228862,1740353483792,-500.0,0.00016931,2]
[354228863,1740353483802,-768.28,0.00016931,2]
[354228864,1740353483812,-500.0,0.00016931,2]
[354228865,1740353483822,-500.0,0.00016931,2]
[354228866,1740353483832,-1355.79,0.00016931,2]
[354228867,1740353483842,-500.0,0.00016931,2]
[354228868,1740353483852,-903.44,0.00016931,2]
[354228869,1740353483861,-500.0,0.00016931,2]
[354228870,1740353483871,-789.8,0.00016931,2]
[354228871,1740353483881,-500.0,0.00016931,2]
[354228872,1740353483891,-930.11,0.00016931,2]
[354228873,1740353483900,-3374.28,0.00016931,2]
[354228874,1740353483910,-1361.46,0.00016931,2]
[354228875,1740353483920,-500.0,0.00016931,2]
[354228876,1740353483929,-861.81,0.00016931,2]
[354228877,1740353483939,-1538.75,0.00016931,2]
[354228878,1740353483950,-2228.34,0.00016931,2]
[354228879,1740353483960,-1332.93,0.00016931,2]
[354228880,1740353483971,-1249.71,0.00016931,2]
[354228881,1740353483981,-500.0,0.00016931,2]
[354228882,1740353483994,-500.0,0.00016931,2]
[354228883,1740353484004,-3444.02,0.00016931,2]
[354228884,1740353484013,-500.0,0.00016931,2]
[354228885,1740353484023,-4982.05,0.00016931,2]
[354228886,1740353484033,-793.58,0.00016931,2]
[354228887,1740353484042,-4534.88,0.00016931,2]
[354228888,1740353484052,-996.8,0.00016931,2]
[354228889,1740353484063,-1506.19,0.00016931,2]
[354228890,1740353484074,-534.80359298,0.00016931,2]
[354228891,1740353484084,-502.84595702,0.00016931,2]
[354228892,1740353484095,-676.59,0.00016931,2]
[354228893,1740353484104,-1565.13,0.00016931,2]
[354228894,1740353484113,-1729.64,0.00016931,2]
[354228895,1740353484123,-2061.82,0.00016931,2]
[354228896,1740353484133,-914.7,0.00016931,2]
[354228897,1740353484142,-1510.76,0.00016931,2]
[354228898,1740353484152,-1515.73,0.00016931,2]
[354228899,1740353484161,-1772.15,0.00016931,2]
[354228900,1740353484171,-1327.26,0.00016931,2]
[354228901,1740353484180,-489.43949381,0.00016931,2]
[354228902,1740353484190,-500.0,0.00016931,2]
[354228903,1740353484199,-8381.48,0.00016931,2]
[354228904,1740353484208,-2177.57,0.00016931,2]
[354228905,1740353484218,-988.11,0.00016931,2]
[354228906,1740353484228,-508.22483126,0.00016931,2]
[354228907,1740353484238,-500.0,0.00016931,2]
[354228908,1740353484247,-3529.02,0.00016931,2]
[354228909,1740353484257,-1863.94,0.00016931,2]
[354228910,1740353484267,-500.0,0.00016931,2]
[354228911,1740353484276,-500.0,0.00016931,2]
[354228912,1740353484286,-500.0,0.00016931,2]
[354228913,1740353484297,-3940.44,0.00016931,2]
[354228914,1740353484308,-509.08,0.00016931,2]
[354228915,1740353484318,-3108.77,0.00016931,2]
[354228916,1740353484328,-4880.47,0.00016931,2]
[354228917,1740353484337,-359.64,0.00016931,2]
[354228918,1740353484347,-988.44,0.00016931,2]
[354228919,1740353484357,-3416.71,0.00016931,2]
[354228920,1740353484367,-1033.08,0.00016931,2]
[354228921,1740353484377,-711.6,0.00016931,2]
[354228922,1740353484386,-3794.22,0.00016931,2]
[354228923,1740353484396,-687.99,0.00016931,2]
[354228924,1740353484406,-2183.59,0.00016931,2]
[354228925,1740353484415,-500.0,0.00016931,2]
[354228926,1740353484425,-666.84,0.00016931,2]
[354228927,1740353484434,-151.0,0.00016931,2]
[354228928,1740353484444,-500.0,0.00016931,2]
[354228929,1740353484454,-1360.01,0.00016931,2]
[354228930,1740353484464,-2691.73,0.00016931,2]
[354228931,1740353484474,-2250.19,0.00016931,2]
[354228932,1740353484483,-1516.02,0.00016931,2]
[354228933,1740353484493,-500.0,0.00016931,2]
[354228934,1740353484503,-4047.89,0.00016931,2]
[354228935,1740353484512,-151.0,0.00016931,2]
[354228936,1740353484521,-741.57,0.00016931,2]
[354228937,1740353484532,-3043.56,0.00016931,2]
[354228938,1740353484542,-962.95,0.00016931,2]
[354228939,1740353484551,-500.0,0.00016931,2]
[354228940,1740353484563,-3262.59,0.00016931,2]
[354228941,1740353484573,-2333.54456941,0.00016931,2]
[354228942,1740353484918,-802.25543059,0.00016931,2]
[354228943,1740353484928,-1117.59,0.00016931,2]
[354228944,1740353484938,-804.09818634,0.00016931,2]
[354228945,1740353484993,-8859.39332455,0.00016931,2]
[354228946,1740353485004,-502.28075208,0.00016931,2]
[354228947,1740353485070,-1185.10773703,0.00016931,2]
[354228948,1740353485080,-26.54226297,0.00016931,2]
[354228951,1740353710692,155.26,8.767e-05,2]
[354228952,1740354229547,-218.64235302,0.00010858,2]
[354228953,1740354229572,-150.0,0.00010908,2]
[354228954,1740354229596,-25700.0,0.00010958,2]
[354228955,1740354229622,-151.189176,0.00010958,2]